Cogmind - Beta 10.1 @@@ ROGUE MODE // 2020.10.15 @ 15:39:17 Player: CVD-b335 Result: Self-destructed Performance ------------- Evolutions (2) 1000 Regions Visited (4) 800 Robots Destroyed (32) 160 Value Destroyed (842) 842 Prototype IDs (1) 20 Alien Tech Used (0) 0 Bonus (0) 0 TOTAL SCORE: 2822 Bonus ------- None Cogmind --------- Core Integrity 347/550 Matter 264/300 Energy 100/100 System Corruption 0% Temperature Cool (9) Movement Core (700) Ox13 Location -8/Materials Parts ------- > --- POWER (1) -------- (None) > --- PROPULSION (2) --- (None) > --- UTILITY (6) ------ Medium Storage Unit Large Storage Unit Large Storage Unit Experimental Sensor Array Improved Targeting Computer > --- WEAPON (2) ------- (None) > --- INVENTORY (20) --- Ion Engine Small Storage Unit Peak State ------------ > --- POWER ------------ Deuterium Engine > --- PROPULSION ------- Wheel Wheel > --- UTILITY ---------- Small Storage Unit Medium Storage Unit Experimental Sensor Array Improved Targeting Computer Improved Targeting Computer Hardened Light Armor Plating > --- WEAPON ----------- Light Assault Rifle Light Assault Rifle > --- INVENTORY -------- Ion Engine Compact Wheel Compact Wheel Medium Laser Light Assault Rifle Light Assault Rifle Rocket Launcher Mace [Rating: 22] Favorites ----------- Power Ion Engine Engine Ion Engine Power Core Light Nuclear Core Propulsion Aluminum Leg Treads Light Treads Leg Aluminum Leg Wheel Wheel Utility Small Storage Unit Device Disposable Heat Sink Storage Small Storage Unit Processor Improved Targeting Computer Protection Hardened Light Armor Plating Weapon EM Pulse Gun Energy Gun EM Pulse Gun Energy Cannon Particle Cannon Ballistic Gun Light Assault Rifle Launcher Rocket Launcher Impact Weapon Mace Build | -11 -10 -9 -9 -8 ------- Run | Scr Mat Mat Min Mat Slots Evolved 4 | . . 2 . 2 Power . | . . . . . Propulsion . | . . . . . Utility 4 | . . 2 . 2 Weapon . | . . . . . Parts Attached 34 | . 3 10 7 14 Power 4 | . . 2 1 1 Engine 3 | . . 1 1 1 Core 1 | . . 1 . . Reactor . | . . . . . Propulsion 6 | . . 4 . 2 Treads 2 | . . 2 . . Leg . | . . . . . Wheel 4 | . . 2 . 2 Hover . | . . . . . Flight . | . . . . . Utility 13 | . 3 2 3 5 Device 4 | . . 2 1 1 Storage 4 | . 2 . . 2 Processor 3 | . 1 . . 2 Hackware . | . . . . . Protection 2 | . . . 2 . Artifact . | . . . . . Weapon 11 | . . 2 3 6 Energy Gun 2 | . . 1 . 1 Energy Cannon 1 | . . 1 . . Ballistic Gun 5 | . . . 2 3 Ballistic Cannon . | . . . . . Launcher 2 | . . . 1 1 Special Weapon . | . . . . . Impact Weapon 1 | . . . . 1 Slashing Weapon . | . . . . . Piercing Weapon . | . . . . . Special Melee Weapon . | . . . . . Unidentified Prototypes 1 | . . . 1 . Parts Lost 20 | . . 4 2 14 Power 3 | . . 1 1 1 Propulsion 5 | . . 1 . 4 Utility 2 | . . . . 2 Weapon 10 | . . 2 1 7 Highest Loss Streak 11 | . . 4 2 11 Average Slot Usage (%) 90 | . 92 86 97 87 Engine 8 | . 14 6 10 6 Leg 11 | . 28 15 . . Wheel 9 | . . 3 22 16 Device 9 | . . 13 12 8 Storage 20 | . 15 22 22 21 Processor 3 | . 5 . . 13 Protection 3 | . . . 9 6 Energy Gun 12 | . 28 17 . . Energy Cannon 3 | . . 4 9 . Ballistic Gun 4 | . . . 10 9 Naked Turns . | . . . . . Heaviest Build 59 | 13 21 25 28 59 Greatest Support 40 | 20 20 40 20 32 Greatest Overweight (x) 14 | . 1 1 1 14 Average Overweight (x) . | . . . . 1 Largest Inventory Capacity 20 | . 10 10 10 20 Average Capacity 10 | . 6 10 10 14 Most Carried 10 | . 6 10 10 9 Average Carried 6 | . 5 7 8 4 Final Capacity 20 | 6 10 10 10 20 Final Carried 10 | 6 6 8 10 2 Class Distribution -------------------- 85% | Mutant 14% | Hauler-Mutant Dominant Class ---------------- Mutant | -10/Materials Mutant | -9/Materials Mutant | -9/Mines Hauler-Mutant | -8/Materials Resources | -11 -10 -9 -9 -8 ----------- Run | Scr Mat Mat Min Mat Matter Collected 536 | 200 . 130 72 134 Remotely 65 | . . 60 5 . Salvage Created 970 | . 53 671 5 241 Parts 61 | . 7 37 4 13 Haulers Intercepted . | . . . . . Recyclers Shooed . | . . . . . Parts Field Recycled . | . . . . . Retrieved Matter . | . . . . . Parts Self-Destructed . | . . . . . Prevented . | . . . . . Kills | -11 -10 -9 -9 -8 ------- Run | Scr Mat Mat Min Mat Combat Hostiles Destroyed 27 | . 3 12 4 8 Guns 15 | . 3 9 . 3 Cannons 2 | . . 1 1 . AOE 10 | . . 2 3 5 Classes Destroyed 8 | . 1 5 . 2 Worker 1 | . . . . 1 Tunneler 1 | . . 1 . . Recycler 1 | . . 1 . . Watcher 2 | . . 1 . 1 Swarmer 12 | . 3 1 4 4 Grunt 10 | . . 8 . 2 Sentry 4 | . . 3 . 1 Hunter 1 | . . . . 1 Best Kill Streak 8 | . 3 6 4 8 Combat Bots Only 6 | . 3 4 4 6 Max Kills in Single Turn 4 | . 2 3 2 4 Gunslinging . | . . . . . Exploded 4 | . . 2 2 4 Melee . | . . . . . Uniques/NPCs Destroyed . | . . . . . Combat | -11 -10 -9 -9 -8 -------- Run | Scr Mat Mat Min Mat Damage Taken 2137 | . 22 594 196 1325 Core 403 | . . 127 73 203 Absorbed by Shields . | . . . . . Core Remaining (%) 83 | 100 100 . 50 . Volleys Fired 77 | . 3 32 4 38 Largest 2 | . 2 2 2 2 Hottest 118 | . 80 118 98 70 Shots Fired 124 | . 6 63 6 49 Gun 101 | . 6 51 . 44 Cannon 16 | . . 12 4 . Launcher 7 | . . . 2 5 Special . | . . . . . Kinetic 37 | . . . . 37 Thermal 34 | . . 23 4 7 Explosive 7 | . . . 2 5 Electromagnetic 46 | . 6 40 . . Robot Hit Streak 17 | . 1 14 5 17 Robot Miss Streak 3 | . 2 3 2 3 Penetration Max . | . . . . . Secondary Targets 1 | . 1 . . . Max Gunslinging Chain 1 | . 1 . . . Shots Hit Robots 95 | . 2 42 3 48 Core Hits 54 | . 3 25 4 22 Critical Hits 1 | . . . . 1 Critical Kills . | . . . . . Critical Parts Destroyed 1 | . . . . 1 Melee Attacks 10 | . . . . 10 Impact 10 | . . . . 10 Slashing . | . . . . . Piercing . | . . . . . Sneak Attacks . | . . . . . Combat Hostiles . | . . . . . Follow-up Attacks . | . . . . . Damage Inflicted 2169 | . 32 725 359 1053 Guns 787 | . 32 446 . 309 Cannons 163 | . . 122 41 . Explosions 1092 | . . 157 318 617 Melee 127 | . . . . 127 Ramming . | . . . . . Kinetic 232 | . . . . 232 Thermal 509 | . . 391 41 77 Explosive 935 | . . . 318 617 Electromagnetic 366 | . 32 334 . . Impact 127 | . . . . 127 Slashing . | . . . . . Piercing . | . . . . . Highest Corruption . | . . . . . Average Corruption . | . . . . . Corruption Purged . | . . . . . Overload Shots . | . . . . . Overflow Damage 167 | . . 98 27 42 Projectiles 1 | . . . 1 . Explosions 166 | . . 98 26 42 Melee . | . . . . . Knockbacks . | . . . . . Impact . | . . . . . Kinetic . | . . . . . Secondary . | . . . . . Self-Inflicted Damage 363 | . . 165 97 101 Shots 7 | . . 2 2 3 Rammed . | . . . . . Targets Rammed . | . . . . . Kicked . | . . . . . Crushed . | . . . . . Highest Temperature 162 | . 54 162 69 90 Average Temperature 38 | . 29 40 40 35 Received Heat Transfer 555 | . . 177 . 378 Siege Activations . | . . . . . Robots Corrupted . | . . . . . Combat Hostiles . | . . . . . Parts Fried . | . . . . . Impact Corruptions . | . . . . . Robots Melted . | . . . . . Combat Hostiles . | . . . . . Parts Melted 3 | . . 2 . 1 Heat Transferred 1051 | . . 755 74 222 Parts Sabotaged . | . . . . . Parts Stolen . | . . . . . Parts Stripped . | . . . . . Power Chain Reactions 1 | . . 1 . . Missiles Intercepted . | . . . . . Alert | -11 -10 -9 -9 -8 ------- Run | Scr Mat Mat Min Mat Peak Influence 372 | . 70 372 150 271 Initial 80 | . . 29 80 58 Average 140 | . 57 169 148 156 Maximum Alert Level 1 | . . 1 . 1 Low Security (%) 75 | . 100 62 100 54 Level 1 24 | . . 37 . 45 Level 2 . | . . . . . Level 3 . | . . . . . Level 4 . | . . . . . Level 5 . | . . . . . High Security . | . . . . . Max Security . | . . . . . Squads Dispatched 3 | . . 1 . 2 Investigation . | . . . . . Extermination . | . . . . . Reinforcement 3 | . . 1 . 2 Assault . | . . . . . Garrison . | . . . . . Intercept . | . . . . . Construction Impeded . | . . . . . Haulers Reinforced . | . . . . . Stealth | -11 -10 -9 -9 -8 --------- Run | Scr Mat Mat Min Mat Distress Signals 2 | . . . . 2 Communications Jammed . | . . . . . Distress Signals . | . . . . . Times Spotted 45 | . 3 22 4 16 Peak Tracking Total 6 | . 3 5 4 6 Tactical Retreats 3 | . . 1 . 2 Traps | -11 -10 -9 -9 -8 ------- Run | Scr Mat Mat Min Mat Traps Triggered . | . . . . . Indirectly . | . . . . . Trap Hack Attempts . | . . . . . Triggered . | . . . . . Disarmed . | . . . . . Reprogrammed . | . . . . . Reused . | . . . . . Traps Extracted . | . . . . . Installed . | . . . . . Triggered . | . . . . . Machines | -11 -10 -9 -9 -8 ---------- Run | Scr Mat Mat Min Mat Machines Disabled 4 | . . 3 . 1 Max in Single Turn 3 | . . 3 . 1 Machines Sabotaged . | . . . . . Garrisons Compromised . | . . . . . Overloaded Fab Kills . | . . . . . Fab Network Shutdowns . | . . . . . Hacking | -11 -10 -9 -9 -8 --------- Run | Scr Mat Mat Min Mat Machines Accessed 3 | . . 2 . 1 Terminals 2 | . . 2 . . Fabricators . | . . . . . Repair Stations . | . . . . . Recycling Units . | . . . . . Scanalyzers 1 | . . . . 1 Garrison Access . | . . . . . Total Hacks 9 | . . 6 . 3 Successful 3 | . . 1 . 2 Failed 6 | . . 5 . 1 Catastrophic 1 | . . 1 . . Database Lockouts . | . . . . . Manual 3 | . . 3 . . Terminals 6 | . . 6 . . Fabricators . | . . . . . Repair Stations . | . . . . . Recycling Units . | . . . . . Scanalyzers 3 | . . . . 3 Garrison Access . | . . . . . Terminal Hacks . | . . . . . Fabricator Hacks . | . . . . . Repair Station Hacks . | . . . . . Recycling Unit Hacks . | . . . . . Scanalyzer 2 | . . . . 2 Insert Component 1 | . . . . 1 Analyze 1 | . . . . 1 Garrison Access Hacks . | . . . . . Unauthorized Hacks 1 | . . 1 . . Terminals 1 | . . 1 . . Assimilate 1 | . . 1 . . Fabricators . | . . . . . Repair Stations . | . . . . . Recycling Units . | . . . . . Scanalyzers . | . . . . . Garrison Access . | . . . . . Data Cores Recovered . | . . . . . Used . | . . . . . Hacking Detections 2 | . . 2 . . Full Trace Events . | . . . . . Feedback Events . | . . . . . Feedback Blocked . | . . . . . Robot Schematics Acquired . | . . . . . Robots Built . | . . . . . Matter . | . . . . . Time . | . . . . . Total Robot Build Rating . | . . . . . Part Schematics Acquired 1 | . . . . 1 Parts Built . | . . . . . Matter . | . . . . . Time . | . . . . . Total Part Build Rating . | . . . . . Parts Repaired . | . . . . . Time . | . . . . . Parts Recycled . | . . . . . Recycled Matter . | . . . . . Retrieved Matter . | . . . . . Retrieved Components . | . . . . . Parts Scanalyzed 1 | . . . . 1 Part Schematics Acquired 1 | . . . . 1 Parts Damaged . | . . . . . Bothacking | -11 -10 -9 -9 -8 ------------ Run | Scr Mat Mat Min Mat Used RIF Installer . | . . . . . Robots Hacked . | . . . . . Non-combat . | . . . . . Combat . | . . . . . Robot Hacks Applied . | . . . . . Relay Couplers Released . | . . . . . Robots Rewired . | . . . . . Allies Hacked . | . . . . . Hacks Repelled . | . . . . . Allies | -11 -10 -9 -9 -8 -------- Run | Scr Mat Mat Min Mat Total Allies . | . . . . . Largest Group . | . . . . . Highest-Rated Group . | . . . . . Highest-Rated Ally . | . . . . . Total Orders . | . . . . . Ally Attacks . | . . . . . Total Damage . | . . . . . Kills . | . . . . . Allies Corrupted . | . . . . . Allies Melted . | . . . . . Intel | -11 -10 -9 -9 -8 ------- Run | Scr Mat Mat Min Mat Robot Analysis Total . | . . . . . Derelict Logs Recovered 2 | . . . 2 . Drone Launches . | . . . . . Drone Recoveries . | . . . . . Exploration | -11 -10 -9 -9 -8 ------------- Run | Scr Mat Mat Min Mat Turns Passed 1139 | . 223 434 235 247 Spaces Moved 694 | 1 143 220 230 100 Core 1 | . . . . 1 Treads 5 | . . 5 . . Legs 304 | 1 143 160 . . Wheels 384 | . . 55 230 99 Hover . | . . . . . Flight . | . . . . . Fastest Speed 80 | 120 120 90 80 90 Average Speed 113 | 120 124 135 89 102 Slowest Speed 750 | 120 150 160 90 750 Overloaded Moves . | . . . . . Propulsion Burnouts . | . . . . . Robots Hopped . | . . . . . Cave-ins Triggered . | . . . . . Exploration Rate (%) 26 | 2 31 31 56 12 Regions Visited 4 Branch Regions 1 Pre-discovered Areas . | . . . . . Known Exits Taken . | . . . . . Unknown Exits Taken 4 | 1 1 1 1 . Scrap Searched 3 | . . . 3 . Spaces Dug . | . . . . . Terrain Destroyed 90 | . . 21 31 38 Melee . | . . . . . Projectile 1 | . . . 1 . AOE 89 | . . 21 30 38 Terrain Rammed . | . . . . . Walls Destroyed . | . . . . . Machines Disabled . | . . . . . Actions | -11 -10 -9 -9 -8 --------- Run | Scr Mat Mat Min Mat Total 914 | . 183 292 252 187 Wait 76 | . 29 20 3 24 Move 690 | . 142 219 229 100 Hop . | . . . . . Pick Up 13 | . 2 7 4 . Fast Attach 9 | . 2 4 2 1 Attach 17 | . . 5 1 11 Detach 2 | . 1 . . 1 Swap 8 | . 1 1 4 2 Drop 12 | . 3 4 5 . Fire 77 | . 3 32 4 38 Melee 10 | . . . . 10 Ram . | . . . . . Kick . | . . . . . Crush . | . . . . . Escape Stasis . | . . . . . Rewire . | . . . . . Trap . | . . . . . Miscellaneous . | . . . . . Route ------- -11/Scrapyard -10/Materials -9/Materials -9/Mines -8/Materials History --------- Turn | Location | Event 1 | -11/Scrapyard | Discovered new exit (range 0) 1 | -11/Scrapyard | Entered Materials 176 | -10/Materials | Discovered new exit (range 8) 224 | -10/Materials | Entered another Materials area 224 | -9/Materials | Evolved 2 slots: Utility x2 314 | -9/Materials | Build established: Mutant 521 | -9/Materials | Lost 4 parts (1p1n2w) 616 | -9/Materials | Discovered new exit (range 8) 658 | -9/Materials | Entered Mines 762 | -9/Mines | Received a Rocket Launcher from a helpful Derelict 776 | -9/Mines | Learned Materials terminal intel 814 | -9/Mines | Found a damaged Exp. Sensor Array with a note attached 816 | -9/Mines | Found Prototype Device 816 | -9/Mines | Identified Exp. Sensor Array 866 | -9/Mines | Discovered new exit (range 6) 873 | -9/Mines | Learned location of 1 exit from Lower Caves 893 | -9/Mines | Entered Materials 893 | -8/Materials | Evolved 2 slots: Utility x2 894 | -8/Materials | Loaded intel: 12 terminal locations 1125 | -8/Materials | Lost 11 parts (1p2n2u6w) 1140 | -8/Materials | Self-destructed Last Messages --------------- 01083_ U-05 Engineer lays Concrete. 01086_ Deuterium Engine destroyed. 01086_ U-05 Engineer lays Concrete. 01090_ R-06 Scavenger collects Lgt. Treads. 01090_ U-05 Engineer lays Concrete. 01092_ U-05 Engineer builds a Wall. 01094_ Lgt. Assault Rifle destroyed. 01094_ R-06 Scavenger collects Lgt. Treads. 01096_ U-05 Engineer lays Concrete. 01097_ R-06 Scavenger collects Lgt. Armor Plating. 01098_ U-05 Engineer lays Concrete. 01104_ U-05 Engineer builds a Wall. 01114_ The unstable cave ceiling collapses. 01117_ U-05 Engineer builds a Wall. 01125_ Com. Wheel destroyed. 01126_ U-05 Engineer builds a Wall. 01131_ Com. Wheel destroyed. 01133_ U-05 Engineer lays Concrete. 01134_ Mace destroyed. 01135_ U-05 Engineer builds a Wall. Map ----- +----------------------------------------------------+ | ??????????????????""T""??????????????????????????? | | ??????????????????"""""???????????????????"T"????? | | ??????????????????????????????????????????"""????? | | ?????????????????????????????????????????????????? | | ????????????"T"??????????????????????????????????? | | ????????????"""??????T???????????????????????????? | | ?????????????????????????????????????????????????? | | ???????????????????????? ???????????????????????? | | ?????????????????????? ? ??????????????????????? | | ??????????????????????? % #?????????????????????? | | ??????????????????????? o##????????????????????? | | ??????????????????+##### ##????????????????????? | | ??????????????????? #?????????????????????? | | ???????????????????? ?????????????????????? | | ?????????????????????? g ?????????????????????? | | ???????????????????????# #?????????????????????? | | ??##########?###########g ####??????????????????? | | ??# "" #?# # !!##?????????????????? | | ??# ""S #?# """ # a !#?????????????????? | | ??# "" #?# R" # #?????????????????? | | ??# #?# """ """ # #?????????????????? | | ??# #?# """ # !#?????????????????? | | ??# """ #?# """ !?##?????????????????? | | ??#! """ #?# # ## #??????????????????? | | ??# """ #?# #* # #?######?????????? | | ??# #?######### # @Y# ??????????? | | #######+############### =u # """ ??????????? | | # ? ""????????????? | | # ""????????????? | | # ""????????????? | | ###### ###/########## ## ????????????? | | ?????# # #??#######? # ###???????????? | | ?????# # #??????????######?????????????? | | ?????# # """ #?????????????????????????????? | | ###### # """"" #?????????????????????????????? | | # # """"" #?????????????????????????????? | | """ # # """"" #?????????????????????????????? | | """ + # """ #?????????????????????????????? | | """ # # #?????????????????????????????? | | """ !# ###########?????????????????????????????? | | # #???????????????????????????????????????? | | ##########???????????????????????????????????????? | | ?????????????????????????????????????????????????? | | ?????????????????????????????????????????????????? | | ?????????????????????????????????????????????????? | | ?????????????????????????????????????????????????? | | ?????????????????????????????????????????????????? | | ?????????????????????????????????????????????????? | | ?????????????????????????????????????????????????? | | ?????????????????????????????????????????????????? | +----------------------------------------------------+ Best States ------------- Heat Dissipation 31 Coolant Potential 50 Energy Generation 14 Energy Capacity 275 Matter Stores 300 Matter Capacity 300 Sight Range 16 Robot Scan Range 30 Terrain Scan Density 10 Armor Coverage 150 Evasion (%) 42 Targeting Accuracy 12 Recoil Reduction 2 Item Schematics ----------------- Exp. Sensor Array | -8/Materials | Scanalyzed Robot Schematics ------------------ None Fabricated ------------ Nothing Alien Tech Used ----------------- None Achievements -------------- None Challenges ------------ None Game ------ Seed MeleeHardenedSheargun Manual? 0 Play Time 00:16:46 Cumulative 58.7 hours Start 2020.10.15 @ 14:43:53 End 2020.10.15 @ 15:39:17 Sessions 3 Manual Loads 0 Difficulty Rogue Special Mode None Game No. 65 Rogue 65 Adventurer 0 Explorer 0 Win Type - Total 2 Types 2/0/0/0/0/0/0/0/0 Lore% 41 Gallery% 58 Achievement% 40 Wizard Run 0 Options --------- ASCII 0 Keyboard 1 Movement Numpad Keybinds 0 Fullscreen 2 Font 18/SmallcapsGlow Map View 76x50 Tactical HUD 1 Map Filters NONE Filters NONE Steam 1 RUN: 378aaa28-0f58-458c-811a-80f534a9efbe